Cogmind - Beta 15 @@@ ROGUE MODE // 2025.06.18 @ 01:16:00 Player: 7604 Result: Destroyed by S-27 Virus with Autogun Performance ------------- Evolutions (4) 2000 Regions Visited (11) 2200 Robots Destroyed (90) 450 Value Destroyed (2285) 2285 Prototype IDs (57) 1140 Alien Tech Used (0) 0 Bonus (1835) 1835 TOTAL SCORE: 9910 Bonus ------- High Alert Combat Kills 33 Follower Combat Kills 1227 Registered with UFD 300 Met Optimus in HQ 500 Friendly Fire -225 Cogmind --------- Core Integrity 0/850 Matter 275/300 Energy 43/100 System Corruption 1% Temperature Cool (2) Movement Hovering (220) Ox2 Location -6/Factory Parts ------- > --- POWER (1) -------- (None) > --- PROPULSION (4) --- Combat Airjet > --- UTILITY (8) ------ Large Storage Unit Advanced Signal Interpreter Improved Utility Shielding Improved Hacking Suite Improved Hacking Suite Advanced System Shield > --- WEAPON (2) ------- AWS/Thermal > --- INVENTORY (15) --- Deep Structural Scanner Seismic Detector Makeshift Transmission Jammer Experimental System Shield Tech Extrapolator Backup Laser III Hypervelocity Gauss Rifle Plasma Cutter Power Sword Peak State ------------ > --- POWER ------------ Micro Nuclear Core > --- PROPULSION ------- Combat Airjet Combat Airjet Combat Airjet > --- UTILITY ---------- Large Storage Unit Experimental Optical Array Experimental Sensor Array Advanced Signal Interpreter Improved Propulsion Shielding Improved Hacking Suite Improved Hacking Suite Advanced System Shield > --- WEAPON ----------- Heavy Beamcaster Hypervelocity Railgun > --- INVENTORY -------- Deep Structural Scanner Makeshift Transmission Jammer Hardened Light Armor Plating Hardened Light Armor Plating Hardened Light Armor Plating Improved Light Armor Plating Experimental System Shield Tech Extrapolator System Restoration Module Backup Laser III AWS/Thermal Hypervelocity Gauss Rifle Plasma Cutter Power Sword [Rating: 81] Favorites ----------- Power Ion Engine Engine Ion Engine Power Core Light Nuclear Core Propulsion Aerolev Unit Treads Light Treads Leg Aluminum Leg Hover Unit Aerolev Unit Utility Large Storage Unit Device Seismic Detector Storage Large Storage Unit Processor Advanced Signal Interpreter Hackware Improved Hacking Suite Protection Improved Propulsion Shielding Weapon Medium Laser Energy Gun Medium Laser Energy Cannon Heavy Ion Cannon Ballistic Gun Hypervelocity Railgun Ballistic Cannon Assault Cannon Launcher Long-range Missile Launcher Special Weapon CPS Tube Impact Weapon Hammer Slashing Weapon Power Sword Piercing Weapon Makeshift Spear Special Melee Weapon Improved Datajack Build | -11 -10 -10 -10 -9 -8 -8 -8 -8 -6 -6 -6 ------- Run | Yrd Mat Min Exi Min Mat Sto Rec Scr Fac Was Fac Slots Evolved 8 | . . . . . 4 . . . 4 . . Power . | . . . . . . . . . . . . Propulsion 2 | . . . . . 2 . . . . . . Utility 6 | . . . . . 2 . . . 4 . . Weapon . | . . . . . . . . . . . . Parts Attached 100 | 3 8 3 2 1 34 5 3 3 21 3 14 Power 11 | . . . . . 4 1 . . 3 . 3 Engine 3 | . . . . . 2 . . . 1 . . Core 8 | . . . . . 2 1 . . 2 . 3 Reactor . | . . . . . . . . . . . . Propulsion 28 | . 3 1 . . 12 1 2 1 4 . 4 Treads 10 | . 3 1 . . 4 . 2 . . . . Leg 3 | . . . . . 3 . . . . . . Wheel . | . . . . . . . . . . . . Hover 15 | . . . . . 5 1 . 1 4 . 4 Flight . | . . . . . . . . . . . . Utility 39 | 1 3 . 1 . 14 . . 1 12 1 6 Device 14 | 1 2 . . . 5 . . . 2 . 4 Storage 3 | . 1 . 1 . 1 . . . . . . Processor 6 | . . . . . 1 . . . 3 1 1 Hackware 6 | . . . . . . . . . 6 . . Protection 10 | . . . . . 7 . . 1 1 . 1 Artifact . | . . . . . . . . . . . . Weapon 22 | 2 2 2 1 1 4 3 1 1 2 2 1 Energy Gun 7 | 1 1 . . 1 . 2 . . . 1 1 Energy Cannon 4 | . . . . . 3 1 . . . . . Ballistic Gun 1 | . . . . . . . . . . 1 . Ballistic Cannon 1 | . . . . . 1 . . . . . . Launcher 2 | . 1 . . . . . . . 1 . . Special Weapon 2 | 1 . . . . . . . 1 . . . Impact Weapon 1 | . . 1 . . . . . . . . . Slashing Weapon 1 | . . . . . . . . . 1 . . Piercing Weapon 1 | . . . 1 . . . . . . . . Special Melee Weapon 2 | . . 1 . . . . 1 . . . . Unidentified Prototypes 5 | . . . . . 1 2 . . . 1 1 Parts Lost 35 | . 1 . . 1 9 1 . . 8 . 15 Power 9 | . . . . . 3 1 . . 1 . 4 Propulsion 14 | . 1 . . . 3 . . . 5 . 5 Utility 7 | . . . . . 2 . . . . . 5 Weapon 5 | . . . . 1 1 . . . 2 . 1 Highest Loss Streak 12 | . 1 . . 1 5 1 . . 5 . 12 To Critical Strikes . | . . . . . . . . . . . . Average Backups 10 | 6 8 9 12 15 18 13 14 13 13 12 12 Power . | 1 . . . . . 1 1 . 1 . . Propulsion 3 | 4 2 2 3 3 4 2 3 3 3 . 1 Utility 2 | . . 2 3 5 5 4 5 4 4 7 6 Weapon 3 | 1 3 4 6 6 5 3 3 3 3 3 3 Tool/Special . | . . . . . . . . . . . . Unused Backups 31 | . 3 . . . 8 . . 3 9 . 8 Power 4 | . 1 . . . . . . . 3 . . Propulsion 6 | . . . . . 3 . . . 3 . . Utility 14 | . 2 . . . 3 . . 2 1 . 6 Weapon 5 | . . . . . 2 . . . 2 . 1 Tool/Special 2 | . . . . . . . . 1 . . 1 Average Slot Usage (%) 98 | . 99 100 100 99 96 96 99 99 97 89 91 Engine 6 | . 14 14 14 14 5 3 . . . . . Core 3 | . . . . . 2 5 9 9 6 6 5 Treads 12 | . 21 28 28 28 22 . . . . . . Hover 16 | . . . . . 11 35 35 36 25 20 22 Device 11 | . 14 14 14 14 9 9 9 9 12 6 10 Storage 10 | . 14 14 14 14 9 9 9 9 6 6 6 Processor 1 | . . . . . . . . . 6 6 6 Hackware 3 | . . . . . . . . . 12 20 20 Protection 9 | . . . . . 16 16 18 18 11 13 7 Energy Gun 8 | . 27 27 . 15 5 . . . . 4 . Energy Cannon 3 | . . . . . 10 16 17 . . . . Piercing Weapon 2 | . . . 2 6 1 . . 9 2 . . Special Melee Weapon 3 | . . . 14 6 . . . 6 4 . . Peak Build Rating 81 | 9 9 8 13 14 46 45 45 44 75 81 79 Average Rating 26 | 8 7 7 9 12 30 41 41 40 66 71 69 On Entrance 29 | 6 9 7 8 13 13 39 45 40 42 61 68 Naked Turns . | . . . . . . . . . . . . Heaviest Build 71 | 15 30 30 49 50 71 47 47 35 39 43 43 Greatest Support 80 | 20 40 40 40 40 80 33 33 36 46 36 44 Greatest Overweight (x) 4 | 4 . . 1 1 3 1 1 1 . 1 2 Average Overweight (x) . | . . . . 1 . . 1 . . . . Largest Inventory Capacity 20 | 8 15 15 20 20 20 15 15 15 15 15 15 Average Capacity 12 | 8 10 15 15 20 19 15 15 15 15 15 15 Most Carried 20 | 8 9 11 15 20 20 15 15 15 15 15 15 Average Carried 11 | 6 8 9 13 16 19 14 15 14 14 14 13 Final Capacity 20 | 8 15 15 20 20 15 15 15 15 15 15 15 Final Carried 20 | 8 9 11 14 20 15 15 15 15 10 15 9 Class Distribution -------------------- 70% | Mutant 9% | Hacker-Scout 7% | Commander-Mutant 6% | Scavenger-Mutant 4% | Hacker-Mutant Dominant Class ---------------- Mutant | -10/Materials Mutant | -10/Mines Commander-Mutant | -10/Exiles Commander-Mutant | -9/Mines Scavenger-Mutant | -8/Materials Mutant | -8/Storage Mutant | -8/Recycling Mutant | -8/Scraptown Hacker-Scout | -6/Factory Hacker-Mutant | -6/Waste Hacker-Mutant | -6/Factory Resources | -11 -10 -10 -10 -9 -8 -8 -8 -8 -6 -6 -6 ----------- Run | Yrd Mat Min Exi Min Mat Sto Rec Scr Fac Was Fac Matter Collected 2150 | 230 220 37 30 40 490 150 103 77 250 196 327 Remotely . | . . . . . . . . . . . . Salvage Created 3112 | 148 512 . 47 14 1251 262 161 94 272 . 351 Parts 184 | 19 28 . . . 71 14 9 4 26 . 13 Haulers Intercepted 6 | . 2 . . . 1 2 . . . . 1 Recyclers Shooed 5 | . . . . 1 1 2 . . 1 . . Parts Field Recycled . | . . . . . . . . . . . . Retrieved Matter . | . . . . . . . . . . . . Parts Self-Destructed . | . . . . . . . . . . . . Prevented . | . . . . . . . . . . . . Kills | -11 -10 -10 -10 -9 -8 -8 -8 -8 -6 -6 -6 ------- Run | Yrd Mat Min Exi Min Mat Sto Rec Scr Fac Was Fac Combat Hostiles Destroyed 55 | . 15 . . 1 22 1 3 1 5 . 7 Melee 19 | . . . . . 11 . . 1 1 . 6 Guns 14 | . 10 . . 1 2 . . . . . 1 Cannons 12 | . . . . . 8 1 3 . . . . AOE 9 | . 5 . . . . . . . 4 . . Classes Destroyed 14 | 1 6 . . 1 2 . . 2 1 . 1 Worker 8 | . 1 . . . 1 . . . 6 . . Tunneler 10 | 8 . . . . 1 . . . 1 . . Hauler 6 | . 2 . . . 1 2 . . . . 1 Recycler 2 | . . . . . 1 1 . . . . . Operator 6 | . 2 . . . 1 . . . 3 . . Watcher 4 | . 1 . . . 1 . . . 2 . . Swarmer 20 | . 8 . . . 4 . . . 3 . 5 Grunt 20 | . 7 . . . 13 . . . . . . Brawler 1 | . . . . . . . . . . . 1 Sentry 10 | . . . . . 5 1 3 . 1 . . Programmer 2 | . . . . . . . . . 1 . 1 Scientist 1 | . . . . . . . . 1 . . . Scrapper 1 | . . . . . . . . 1 . . . Assembled 1 | . . . . 1 . . . . . . . Best Kill Streak 6 | 1 6 . . 1 5 1 1 1 6 . 3 Combat Bots Only 6 | . 6 . . 1 5 1 1 1 3 . 3 Max Kills in Single Turn 5 | 1 2 . . 1 1 1 1 1 5 . 1 Gunslinging . | . . . . . . . . . . . . Exploded 2 | . 2 . . . . . . . 2 . . Melee 1 | . . . . . 1 . . 1 1 . 1 Uniques/NPCs Destroyed . | . . . . . . . . . . . . Combat | -11 -10 -10 -10 -9 -8 -8 -8 -8 -6 -6 -6 -------- Run | Yrd Mat Min Exi Min Mat Sto Rec Scr Fac Was Fac Hostile Shots Fired 527 | . 61 2 . 2 181 3 6 8 82 . 182 Missed 148 | . 17 . . . 44 1 1 3 28 . 54 Hits 379 | . 44 2 . 2 137 2 5 5 54 . 128 Melee 2 | . . . . . . 1 . . . . 1 Projectile 377 | . 44 2 . 2 137 1 5 5 54 . 127 AOE 3 | . . . . 3 . . . . . . . Critical Strikes 12 | . . . . . 6 . 1 . 3 . 2 Actively Blocked 2 | . . . . . . . 1 . . . 1 Damage Taken 6344 | . 454 30 . 147 2142 37 70 85 1289 . 2090 Core 1346 | . 122 15 . 9 333 14 . . 341 . 512 Absorbed by Shields . | . . . . . . . . . . . . Redirected to Shielding 454 | . . . . . 41 . 25 19 213 . 156 Regen/Repaired (Parts) 654 | . . . . . . . . . 309 146 199 Core Remaining (%) 59 | 100 . . . 41 . . . 36 . . . Volleys Fired 183 | 22 56 2 . 8 45 15 9 1 4 8 13 Largest 2 | 2 2 2 . 2 2 2 2 1 1 1 1 Hottest 130 | 100 100 100 . 100 130 130 130 . 43 81 40 Shots Fired 324 | 36 106 5 . 16 83 29 18 1 5 8 17 Gun 186 | 28 100 5 . 16 12 . . . . 8 17 Cannon 118 | . . . . . 71 29 18 . . . . Launcher 11 | . 6 . . . . . . . 5 . . Special 9 | 8 . . . . . . . 1 . . . Kinetic 13 | . . . . . . . . . . . 13 Thermal 299 | 36 100 5 . 16 83 29 18 . . 8 4 Explosive 11 | . 6 . . . . . . . 5 . . Electromagnetic . | . . . . . . . . . . . . Robot Hit Streak 13 | 6 9 9 . 3 13 6 6 1 3 2 3 Robot Miss Streak 3 | 3 3 . . 3 3 2 2 . 1 3 2 Penetration Max 1 | . . . . . . . . . . . 1 Secondary Targets 2 | . 2 . . . . . . . . . . Max Gunslinging Chain 1 | . 1 . . . . . . . . . . Autonomous 4 | . . . . . . . . . . . 4 Shots Hit Robots 263 | 15 64 4 9 11 92 18 8 8 14 3 17 Core Hits 132 | 8 33 2 2 2 40 4 3 1 27 2 8 Critical Kills 2 | . . . . . . . . . . . 2 Critical Parts Destroyed 2 | . . . . . . . . . . . 2 Critical Strikes 23 | . 7 . . . 9 . . 2 1 . 4 Burn 12 | . 7 . . . 5 . . . . . . Destroy 4 | . . . . . . . . . . . 4 Impale 7 | . . . . . 4 . . 2 1 . . Melee Attacks 154 | . . . 9 2 55 . . 8 63 . 17 Impact . | . . . . . . . . . . . . Slashing 42 | . . . . . . . . . 25 . 17 Piercing 97 | . . . 4 . 55 . . 4 34 . . Sneak Attacks 18 | . . . 4 2 3 . . 5 4 . . Combat Hostiles . | . . . . . . . . . . . . Follow-up Attacks . | . . . . . . . . . . . . Damage Inflicted 7448 | 186 1220 51 214 127 2455 486 214 135 1676 184 500 Guns 1699 | 186 852 51 . 127 136 . . . . 184 163 Cannons 1907 | . . . . . 1207 486 214 . . . . Explosions 1569 | . 368 . . . . . . . 1201 . . Melee 2268 | . . . 214 . 1107 . . 135 475 . 337 Ramming 5 | . . . . . 5 . . . . . . Kinetic 70 | . . . . . . . . . . . 70 Thermal 3536 | 186 852 51 . 127 1343 486 214 . . 184 93 Explosive 1569 | . 368 . . . . . . . 1201 . . Electromagnetic . | . . . . . . . . . . . . Impact . | . . . . . . . . . . . . Slashing 698 | . . . . . . . . . 361 . 337 Piercing 1570 | . . . 214 . 1107 . . 135 114 . . Highest Corruption 6 | . 2 2 2 2 1 3 3 . 6 6 6 Average Corruption 2 | . 2 2 2 2 1 2 3 . 2 6 3 Corruption Purged 5 | . . . . . . . . . . . 5 Corruption Blocked . | . . . . . . . . . . . . Effects 100 | . 7 12 12 11 9 5 13 . 11 11 9 Message Errors 30 | . . 2 5 2 3 2 4 . 4 5 3 Matter Fused 23 | . 2 3 . 3 2 . 3 . 3 3 4 Heat Flow Errors 11 | . 2 2 1 2 1 . 1 . 1 1 . Energy Discharges 9 | . 1 1 2 2 1 1 . . . . 1 Parts Rejected 1 | . . . . . . . . . 1 . . Parts Fused 1 | . . 1 . . . . . . . . . Data Loss (minor) 14 | . 1 2 2 1 . 1 3 . 1 2 1 Data Loss (major) 5 | . 1 . 1 1 . 1 1 . . . . Misfires 4 | . . 1 . . 1 . 1 . 1 . . Alerts 1 | . . . 1 . . . . . . . . Weapon Failures 1 | . . . . . 1 . . . . . . Overload Shots . | . . . . . . . . . . . . Overflow Damage 417 | . 7 . . . 76 13 . 124 171 . 26 Projectiles 45 | . . . . . 32 13 . . . . . Explosions 115 | . 7 . . . . . . . 108 . . Melee 257 | . . . . . 44 . . 124 63 . 26 Knockbacks . | . . . . . . . . . . . . Impact . | . . . . . . . . . . . . Kinetic . | . . . . . . . . . . . . Secondary . | . . . . . . . . . . . . Self-Inflicted Damage 318 | . . . . . . . . . 318 . . Shots 6 | . . . . . . . . . 6 . . Rammed 2 | . . . . . 2 . . . . . . Targets Rammed 2 | . . . . . 2 . . . . . . Kicked . | . . . . . . . . . . . . Crushed . | . . . . . . . . . . . . Highest Temperature 392 | 117 295 225 185 239 254 392 94 12 241 255 9 Average Temperature 69 | 36 81 80 99 68 66 88 36 9 107 79 9 Received Heat Transfer 1597 | . 210 9 . 9 1080 9 18 36 163 . 63 Siege Activations . | . . . . . . . . . . . . Martial Activations . | . . . . . . . . . . . . Shielding Activations . | . . . . . . . . . . . . Robots Disrupted . | . . . . . . . . . . . . Combat Hostiles . | . . . . . . . . . . . . Robots Corrupted . | . . . . . . . . . . . . Combat Hostiles . | . . . . . . . . . . . . Parts Fried . | . . . . . . . . . . . . Impact Corruptions . | . . . . . . . . . . . . Robots Melted 1 | . . . . . 1 . . . . . . Combat Hostiles 1 | . . . . . 1 . . . . . . Parts Melted 19 | . 9 . . . 7 1 2 . . . . Heat Transferred 7918 | 555 3034 148 . 370 2442 666 296 . . 296 111 Parts Sabotaged . | . . . . . . . . . . . . Parts Stolen . | . . . . . . . . . . . . Parts Stripped . | . . . . . . . . . . . . Power Chain Reactions . | . . . . . . . . . . . . Alert | -11 -10 -10 -10 -9 -8 -8 -8 -8 -6 -6 -6 ------- Run | Yrd Mat Min Exi Min Mat Sto Rec Scr Fac Was Fac Maximum Alert Level 2 | . 1 . . . 1 1 . . . . 2 Low Security (%) 89 | 100 61 100 . 100 86 27 100 . 100 100 37 Level 1 9 | . 38 . . . 13 72 . . . . 45 Level 2 . | . . . . . . . . . . . 16 Level 3 . | . . . . . . . . . . . . Level 4 . | . . . . . . . . . . . . Level 5 . | . . . . . . . . . . . . High Security . | . . . . . . . . . . . . Max Security . | . . . . . . . . . . . . Peak Influence 473 | 15 307 102 . 56 244 364 149 . 188 53 473 Initial 102 | . 9 102 . . . 91 83 . . 53 . Average 49 | . 117 14 . 4 103 241 77 . 12 7 268 Influence Increases 3969 | 40 566 74 . 81 701 579 285 . 561 43 1039 Destroy 0b10 Robot/C 1700 | . 300 60 . 40 440 240 60 . 100 . 460 Destroy 0b10 Robot/NC 210 | 40 30 . . 5 30 20 . . 60 . 25 Destroy Leader 360 | . 56 10 . 10 104 74 . . 34 . 72 Allied During Kill 512 | . . 4 . 11 . 161 . . . . 336 Trap Triggered on 0b10 10 | . . . . . . . . . 10 . . Successful Hack 212 | . 34 . . . 13 12 35 . 64 . 54 Select Force Hacks 270 | . 60 . . . . . 180 . 30 . . Disable Machine 135 | . . . . . . 45 . . 75 . 15 Destroy Structure 215 | . 26 . . . 24 12 10 . 68 43 32 Partial Spotted 30 | . . . . . . . . . 30 . . Lose Combat Pursuer 315 | . 60 . . 15 90 15 . . 90 . 45 Influence Decreases 3632 | 25 317 338 . 81 484 582 499 . 409 195 702 Entered New Map 524 | . 6 162 . . . 126 131 . . 99 . Time Decay 2061 | 25 301 176 . 56 404 246 260 . 306 65 222 Lost Part 317 | . 10 . . . 80 10 . . 67 . 150 Lost Ally 436 | . . . . 25 . 200 . . . 31 180 Purge Threat 294 | . . . . . . . 108 . 36 . 150 Squads Dispatched 36 | . 4 . . . 3 2 . . 19 . 8 Investigation 20 | . 2 . . . 1 . . . 10 . 7 Extermination 5 | . . . . . . . . . 4 . 1 Reinforcement 11 | . 2 . . . 2 2 . . 5 . . Assault . | . . . . . . . . . . . . Garrison . | . . . . . . . . . . . . Intercept . | . . . . . . . . . . . . Searches Triggered . | . . . . . . . . . . . . Construction Impeded 1 | . . . . . . . . . 1 . . Haulers Reinforced . | . . . . . . . . . . . . Active Scanning Responses . | . . . . . . . . . . . . Cargo Convoy Interrupts . | . . . . . . . . . . . . Stealth | -11 -10 -10 -10 -9 -8 -8 -8 -8 -6 -6 -6 --------- Run | Yrd Mat Min Exi Min Mat Sto Rec Scr Fac Was Fac Distress Signals 12 | . 2 . . . 3 6 . . 1 . . Communications Jammed . | . . . . . . . . . . . . Distress Signals . | . . . . . . . . . . . . Times Spotted 166 | . 31 2 . 7 35 15 1 8 36 5 26 Peak Tracking Total 7 | . 5 1 . 3 7 4 1 5 7 4 6 Tactical Retreats 14 | . 3 . . 1 3 1 . . 4 . 2 Traps | -11 -10 -10 -10 -9 -8 -8 -8 -8 -6 -6 -6 ------- Run | Yrd Mat Min Exi Min Mat Sto Rec Scr Fac Was Fac Traps Triggered 18 | . 1 . . . 4 4 . . 5 . 4 Indirectly . | . . . . . . . . . . . . Trap Hack Attempts 1 | . . . . . . . . . 1 . . Triggered . | . . . . . . . . . . . . Disarmed . | . . . . . . . . . . . . Reprogrammed 1 | . . . . . . . . . 1 . . Reused 1 | . . . . . . . . . 1 . . Traps Extracted . | . . . . . . . . . . . . Installed . | . . . . . . . . . . . . Triggered 1 | . . . . . . . . . 1 . . Machines | -11 -10 -10 -10 -9 -8 -8 -8 -8 -6 -6 -6 ---------- Run | Yrd Mat Min Exi Min Mat Sto Rec Scr Fac Was Fac Machines Disabled 10 | . 1 . . . . 3 . . 5 . 1 Max in Single Turn 3 | . 1 . . . . 1 . . 3 . . Garrison Access 2 | . . . . . . . . . 2 . . Machines Repaired . | . . . . . . . . . . . . Machines Dismantled . | . . . . . . . . . . . . Machines Sabotaged . | . . . . . . . . . . . . Overloaded Fab Kills . | . . . . . . . . . . . . Hacking | -11 -10 -10 -10 -9 -8 -8 -8 -8 -6 -6 -6 --------- Run | Yrd Mat Min Exi Min Mat Sto Rec Scr Fac Was Fac Machines Accessed 72 | . 9 . 2 . 4 4 12 3 28 . 10 Terminals 34 | . 6 . . . 3 3 6 . 12 . 4 Fabricators 5 | . . . . . . . . . 3 . 2 Repair Stations 5 | . 1 . . . . . . . 3 . 1 Recycling Units 19 | . 2 . . . . 1 6 . 7 . 3 Scanalyzers 2 | . . . . . 1 . . . 1 . . Garrison Access 2 | . . . . . . . . . 2 . . Total Hacks 251 | . 37 . 3 . 13 12 34 22 88 . 42 Successful 150 | . 20 . 3 . 6 5 23 22 41 . 30 Failed 99 | . 16 . . . 7 7 10 . 47 . 12 Catastrophic 16 | . 3 . . . 1 . 1 . 10 . 1 Database Lockouts 2 | . 1 . . . . . 1 . . . . Manual 119 | . 22 . 1 . 10 8 18 . 36 . 24 Terminals 140 | . 27 . . . 11 11 20 . 45 . 26 Fabricators 14 | . . . . . . . . . 8 . 6 Repair Stations 13 | . 1 . . . . . . . 11 . 1 Recycling Units 49 | . 9 . . . . 1 14 . 16 . 9 Scanalyzers 5 | . . . . . 2 . . . 3 . . Garrison Access 5 | . . . . . . . . . 5 . . Terminal Hacks 68 | . 9 . 3 . 2 2 5 22 12 . 13 Record 23 | . . . 2 . . . . 21 . . . Part Schematic 4 | . . . . . . . . . 3 . 1 Robot Schematic 1 | . . . . . . . 1 . . . . Robot Analysis 5 | . 2 . . . 1 . . . 1 . 1 Prototype ID Bank 6 | . 2 . . . . . 2 . 1 . 1 Branch Access Points 1 | . . . . . . . . . . . 1 Machine Index 1 | . . . . . . . . . . . 1 Terminal Index 2 | . . . . . . . . . 1 . 1 Scanalyzer Index 1 | . . . . . . . . . . . 1 Alert Level 2 | . 1 . . . . . . . 1 . . Unreport Threat 3 | . . . . . . . 1 . 1 . 1 Locate Traps 7 | . 2 . . . 1 1 . . 2 . 1 Patrol Status 1 | . . . . . . . . . . . 1 Recall Extermination 1 | . . . . . . . . . 1 . . Hauler Manifests 2 | . . . . . . . . . 1 . 1 Registered Components 3 | . 1 . . . . 1 . . . . 1 Zone Layout 3 | . 1 . . . . . 1 . . . 1 Proto ID Catalog 2 | . . . 1 . . . . 1 . . . Fabricator Hacks 9 | . . . . . . . . . 5 . 4 Load Schematic 5 | . . . . . . . . . 3 . 2 Build 4 | . . . . . . . . . 2 . 2 Repair Station Hacks 8 | . . . . . . . . . 8 . . Scan Component 4 | . . . . . . . . . 4 . . Repair 4 | . . . . . . . . . 4 . . Recycling Unit Hacks 16 | . 2 . . . . . 6 . 5 . 3 Retrieve Components 16 | . 2 . . . . . 6 . 5 . 3 Scanalyzer 4 | . . . . . 2 . . . 2 . . Insert Component 2 | . . . . . 1 . . . 1 . . Analyze 2 | . . . . . 1 . . . 1 . . Garrison Access Hacks 2 | . . . . . . . . . 2 . . Seal Access 2 | . . . . . . . . . 2 . . Unauthorized Hacks 43 | . 9 . . . 2 3 12 . 7 . 10 Terminals 25 | . 7 . . . 2 3 6 . 2 . 5 Track 3 | . . . . . 1 . . . 1 . 1 Botnet 8 | . 1 . . . 1 2 1 . 1 . 2 Operators 2 | . 1 . . . . . . . . . 1 Skim 12 | . 5 . . . . 1 5 . . . 1 Fabricators 1 | . . . . . . . . . . . 1 Prioritize 1 | . . . . . . . . . . . 1 Repair Stations 1 | . . . . . . . . . . . 1 Patch 1 | . . . . . . . . . . . 1 Recycling Units 16 | . 2 . . . . . 6 . 5 . 3 Tunnel 9 | . 2 . . . . . 6 . 1 . . Fedlink 7 | . . . . . . . . . 4 . 3 Scanalyzers . | . . . . . . . . . . . . Garrison Access . | . . . . . . . . . . . . Data Cores Recovered . | . . . . . . . . . . . . Used . | . . . . . . . . . . . . Hacking Detections 54 | . 8 . . . 4 4 9 . 22 . 7 Full Trace Events 7 | . . . . . . . . . 5 . 2 Feedback Events 1 | . . . . . . . . . 1 . . Corruption 1 | . . . . . . . . . 1 . . Feedback Blocked . | . . . . . . . . . . . . Robot Schematics Acquired 1 | . . . . . . . 1 . . . . Robots Built . | . . . . . . . . . . . . Authchips . | . . . . . . . . . . . . Time . | . . . . . . . . . . . . Total Robot Build Rating . | . . . . . . . . . . . . Part Schematics Acquired 5 | . . . . . 1 . . . 3 . 1 Parts Built 5 | . . . . . . . . . 2 . 3 Authchips . | . . . . . . . . . . . . Time 174 | . . . . . . . . . 94 . 80 Total Part Build Rating 24 | . . . . . . . . . 10 . 14 Parts Repaired 4 | . . . . . . . . . 4 . . Time 125 | . . . . . . . . . 125 . . Parts Recycled . | . . . . . . . . . . . . Recycled Matter . | . . . . . . . . . . . . Retrieved Matter . | . . . . . . . . . . . . Retrieved Components 37 | . 14 . . . . . 11 . 5 . 7 Parts Scanalyzed 2 | . . . . . 1 . . . 1 . . Part Schematics Acquired 2 | . . . . . 1 . . . 1 . . Parts Damaged . | . . . . . . . . . . . . Bothacking | -11 -10 -10 -10 -9 -8 -8 -8 -8 -6 -6 -6 ------------ Run | Yrd Mat Min Exi Min Mat Sto Rec Scr Fac Was Fac Used RIF Installer . | . . . . . . . . . . . . Robots Hacked 7 | . . . . 2 . . . 3 2 . . Non-combat 4 | . . . . 2 . . . . 2 . . Combat 3 | . . . . . . . . 3 . . . Robot Hacks Applied 7 | . . . . 2 . . . 3 2 . . parse_system 5 | . . . . 2 . . . 3 . . . find_chute 2 | . . . . . . . . . 2 . . Relay Couplers Released 4 | . . . . . . . . . 4 . . Programmers 4 | . . . . . . . . . 4 . . Fabnet Peak Effective % . | . . . . . . . . . . . . Robots Rewired 5 | . . . 4 . . 1 . . . . . Allies Hacked . | . . . . . . . . . . . . Hacks Repelled . | . . . . . . . . . . . . Allies | -11 -10 -10 -10 -9 -8 -8 -8 -8 -6 -6 -6 -------- Run | Yrd Mat Min Exi Min Mat Sto Rec Scr Fac Was Fac Total Allies 36 | . . 3 4 . . 10 . . . 19 . Largest Group 19 | . . 3 5 5 . 10 . . . 19 11 Highest-Rated Group 669 | . . 40 61 61 . 173 . . . 669 438 Highest-Rated Ally 50 | . . 16 21 21 . 29 . . . 50 50 Total Orders . | . . . . . . . . . . . . Ally Attacks 368 | . . 30 . 25 . 124 . . . 107 82 Total Damage 9530 | . . 338 . 220 . 1557 . . . 4510 2905 Kills 50 | . . 3 . 3 . 12 . . . 11 21 Allies Corrupted . | . . . . . . . . . . . . Allies Melted 1 | . . 1 . . . . . . . . . Intel | -11 -10 -10 -10 -9 -8 -8 -8 -8 -6 -6 -6 ------- Run | Yrd Mat Min Exi Min Mat Sto Rec Scr Fac Was Fac Active Infowar (turns) 15559 | 5396 1375 1118 725 755 1157 155 624 1540 1902 327 485 Optics 338 | . . . . . . . . . 338 . . Sensors 2231 | . . . . . . . . . 1751 327 153 Terrain 5398 | 5396 2 . . . . . . . . . . Structural 1705 | . . . . . . . . . 1222 . 483 Seismic 7678 | . 1373 1118 725 755 1131 155 624 1540 147 . 110 Jamming 26 | . . . . . 26 . . . . . . Robot Analysis Total 5 | . 2 . . . 1 . . . 1 . 1 Derelict Logs Recovered 2 | . . 2 . . . . . . . . . Drone Launches . | . . . . . . . . . . . . Drone Recoveries . | . . . . . . . . . . . . Exploration | -11 -10 -10 -10 -9 -8 -8 -8 -8 -6 -6 -6 ------------- Run | Yrd Mat Min Exi Min Mat Sto Rec Scr Fac Was Fac Turns Passed 16604 | 5410 1481 1118 725 755 1508 529 746 1545 1920 327 540 Spaces Moved 10352 | 1523 788 664 423 292 646 303 694 1771 2463 235 550 Core 202 | 202 . . . . . . . . . . . Treads 2298 | . 551 664 423 292 368 . . . . . . Legs 1561 | 1321 237 . . . 3 . . . . . . Wheels . | . . . . . . . . . . . . Hover 6291 | . . . . . 275 303 694 1771 2463 235 550 Flight . | . . . . . . . . . . . . Fastest Speed 45 | 120 120 160 160 240 100 45 100 45 45 74 62 Average Speed 103 | 137 147 160 164 240 141 99 100 63 54 108 70 Slowest Speed 400 | 250 160 160 240 240 400 105 105 100 74 144 220 Overloaded Moves . | . . . . . . . . . . . . Propulsion Burnouts . | . . . . . . . . . . . . Robots Hopped 1 | . . . . . . . . . . . 1 Potential Cave-ins . | . . . . . . . . . . . . Cave-ins Triggered . | . . . . . . . . . . . . Exploration Rate (%) 72 | 93 96 95 87 55 45 37 99 88 67 95 15 Regions Visited 11 Branch Regions 6 Pre-discovered Areas 21 | . 4 1 1 . . . 8 5 2 . . Known Exits Taken 4 | . 1 . . . 1 . 1 1 . . . Unknown Exits Taken 5 | 1 . 1 1 1 . 1 . . . . . Scrap Searched 7 | . . 2 . 1 . . . 4 . . . Spaces Dug 52 | . . . . . 7 . 3 1 37 . 4 Terrain Destroyed 160 | 1 30 . . . 25 9 10 1 80 . 4 Melee 35 | . . . . . . . . 1 30 . 4 Projectile 45 | 1 . . . . 25 9 10 . . . . AOE 80 | . 30 . . . . . . . 50 . . Terrain Rammed . | . . . . . . . . . . . . Walls Destroyed . | . . . . . . . . . . . . Machines Disabled . | . . . . . . . . . . . . Actions | -11 -10 -10 -10 -9 -8 -8 -8 -8 -6 -6 -6 --------- Run | Yrd Mat Min Exi Min Mat Sto Rec Scr Fac Was Fac Total 15709 | 4789 996 714 446 330 1098 496 725 2184 2969 298 664 Wait 4657 | 3240 121 45 8 20 239 157 8 376 365 40 38 Move 10340 | 1522 787 663 422 291 645 302 693 1770 2463 234 548 Hop 1 | . . . . . . . . . . . 1 Pick Up 92 | 2 8 1 3 7 24 3 . 12 16 4 12 Fast Attach 51 | 1 2 . . . 14 11 4 . 10 4 5 Attach 39 | . 1 . . 1 9 3 . 1 10 1 13 Detach 15 | . . . . . 4 . . . 6 3 2 Swap 83 | 2 12 3 2 1 28 1 7 4 14 2 7 Drop 90 | . 9 . 2 . 33 3 4 12 17 2 8 Fire 183 | 22 56 2 . 8 45 15 9 1 4 8 13 Melee 154 | . . . 9 2 55 . . 8 63 . 17 Ram . | . . . . . . . . . . . . Kick . | . . . . . . . . . . . . Crush 2 | . . . . . 2 . . . . . . Escape Stasis . | . . . . . . . . . . . . Rewire 1 | . . . . . . 1 . . . . . Trap 1 | . . . . . . . . . 1 . . Miscellaneous . | . . . . . . . . . . . . Route ------- -11/Scrapyard -10/Materials (discovered 5 exits: *Mat x3 / *Min / Sub) -10/Mines (discovered 4 exits: *Mat x2 / *Exi / *Sub) -10/Exiles (discovered 2 exits: [*Min x2]) -9/Mines -8/Materials (discovered 2 exits: *Fac / *Sto) -8/Storage (discovered 2 exits: Fac / *Rec) -8/Recycling (discovered 2 exits: *Fac / *Scr) -8/Scraptown (discovered 2 exits: *Fac x2) -6/Factory (discovered 5 exits: *Fac x3 / *Low x2) -6/Waste -6/Factory (discovered 2 exits: Low x2) History --------- Turn | Location | Event 10 | -11/Scrapyard | Discovered new exit (range 3) 5411 | -11/Scrapyard | Entered Materials 5412 | -10/Materials | Build established: Mutant 5561 | -10/Materials | Central database locked down 5776 | -10/Materials | Discovered new exit (range 13) 6045 | -10/Materials | Learned location of Mines (-10) 6093 | -10/Materials | Identified exit to Mines 6093 | -10/Materials | Identified exit to Subcaves 6133 | -10/Materials | Learned location of 1 exit from Recycling 6163 | -10/Materials | Learned 2 Storage zone layouts 6183 | -10/Materials | Learned 2 Mines zone layouts 6263 | -10/Materials | Discovered new exit (range 12) 6336 | -10/Materials | Discovered new exit (range 9) 6892 | -10/Materials | Entered Mines 6894 | -10/Mines | Identified exit to Materials 6930 | -10/Mines | Met a Derelict bent on vengeance 7130 | -10/Mines | Assisted by bots powering up and referring to "LRC-V3" 7378 | -10/Mines | Learned location of Storage (-8) 7545 | -10/Mines | Joined a pair of Derelicts in attacking an 0b10 outpost 7570 | -10/Mines | Core integrity fell below 50% 7964 | -10/Mines | Discovered exit to Materials (range 9) 8000 | -10/Mines | Deemed a non-threat by the Exiles lab entrance 8000 | -10/Mines | Discovered new exit (range 5) 8010 | -10/Mines | Entered Exiles 8010 | -10/Exiles | Found Exiles lab destroyed 8010 | -10/Exiles | Accompanied by 1 ally 8034 | -10/Exiles | Discovered new exit (range 15) 8199 | -10/Exiles | Opened EX-Vault 8212 | -10/Exiles | Found AWS/Thermal 8294 | -10/Exiles | Learned location of Zion (-6) 8626 | -10/Exiles | Build established: Commander-Mutant 8706 | -10/Exiles | Discovered new exit (range 11) 8735 | -10/Exiles | Entered Mines 8735 | -9/Mines | Accompanied by 5 allies 9013 | -9/Mines | Found a damaged Exp. Sensor Array with a note attached 9019 | -9/Mines | Found Prototype Device 9072 | -9/Mines | Discovered new exit (range 5) 9112 | -9/Mines | Received a Rocket Launcher from a helpful Derelict 9361 | -9/Mines | Assembled infested the area 9366 | -9/Mines | Assisted by a Guerilla fighting off Assembled 9490 | -9/Mines | Entered Materials 9490 | -8/Materials | Evolved 4 slots: Propulsion x2, Utility x2 9491 | -8/Materials | Identified exit to Storage 10154 | -8/Materials | Build established: Scavenger-Mutant 10410 | -8/Materials | Core integrity fell below 50% 10434 | -8/Materials | Lost 5 parts (1p3n1u) 10767 | -8/Materials | Discovered new exit (range 3) 10778 | -8/Materials | Build established: Mutant 10998 | -8/Materials | Entered Storage 10999 | -8/Storage | Identified exit to Factory 11008 | -8/Storage | Assisted by bots powering up and referring to "LRC-V3" 11234 | -8/Storage | Lost 4 allies 11287 | -8/Storage | Used back door to open Recycling access 11287 | -8/Storage | Discovered new exit (range 4) 11302 | -8/Storage | Lost 3 allies 11527 | -8/Storage | Entered Recycling 11528 | -8/Recycling | Identified exit to Scraptown 11771 | -8/Recycling | Discovered new exit (range 4) 12006 | -8/Recycling | Learned Storage stockpile data 12095 | -8/Recycling | Learned location of 2 exits from Lower Caves 12147 | -8/Recycling | Learned 4 Lower Caves zone layouts 12158 | -8/Recycling | Learned location of 1 exit from Lower Caves 12186 | -8/Recycling | Learned 4 Lower Caves zone layouts 12216 | -8/Recycling | Learned Storage garrison access intel 12246 | -8/Recycling | Scanned before Scraplab entrance 12263 | -8/Recycling | Entered Scraplab 12273 | -8/Recycling | Entered Scraptown 12273 | -8/Scraptown | System corruption cleaned by C-Scrubber 12385 | -8/Scraptown | Visited UFD Registry 12400 | -8/Scraptown | Visited The Evicted 12406 | -8/Scraptown | Visited Symbiants 12426 | -8/Scraptown | Visited Cyclists 12450 | -8/Scraptown | Visited Scrapoid Research Area 12457 | -8/Scraptown | Visited Shadow of the Wyrm 12641 | -8/Scraptown | Discovered new exit (range 11) 12740 | -8/Scraptown | Visited Cave Peace 12757 | -8/Scraptown | Registered with UFD as "Macenuts" 12779 | -8/Scraptown | Visited Science Guys 12816 | -8/Scraptown | Visited Chapter 10 12830 | -8/Scraptown | Visited Scrap Suit Storage 12844 | -8/Scraptown | Visited LU-1G1's Boring Crew 12857 | -8/Scraptown | Visited Scrapoid Pod Storage 12870 | -8/Scraptown | Visited Junk Repository 12895 | -8/Scraptown | Visited Cartography Club 12927 | -8/Scraptown | Found Deep Structural Scanner 12932 | -8/Scraptown | Learned location of Warlord (-4) 12932 | -8/Scraptown | Learned 12 Materials zone layouts 12932 | -8/Scraptown | Learned 12 Factory zone layouts 12932 | -8/Scraptown | Learned 16 Research zone layouts 12932 | -8/Scraptown | Learned 8 Access zone layouts 12932 | -8/Scraptown | Learned 4 Mines zone layouts 12932 | -8/Scraptown | Learned 12 Lower Caves zone layouts 12932 | -8/Scraptown | Learned 12 Upper Caves zone layouts 12932 | -8/Scraptown | Learned 8 Proximity Caves zone layouts 12932 | -8/Scraptown | Learned 4 Hub_04(d) zone layouts 12932 | -8/Scraptown | Learned location of 1 exit from Upper Caves 12932 | -8/Scraptown | Learned location of 1 exit from Proximity Caves 12932 | -8/Scraptown | Identified exit to Factory 12961 | -8/Scraptown | Visited Junk Repository 12977 | -8/Scraptown | Visited Infowarlord's Domain 12977 | -8/Scraptown | Identified Exp. Sensor Array 12980 | -8/Scraptown | Found Exp. Sensor Array 13164 | -8/Scraptown | Entered Cyclist Reading Room 13384 | -8/Scraptown | Met Optimus 13384 | -8/Scraptown | Accepted into 0bPrime 13784 | -8/Scraptown | Civil war broke out across Scraptown 13818 | -8/Scraptown | Entered Factory 13818 | -6/Factory | Evolved 4 slots: Utility x4 13819 | -6/Factory | Identified exit to Factory 13820 | -6/Factory | Identified exit to Lower Caves 13877 | -6/Factory | Repaired Imp. Propulsion Shielding? 13926 | -6/Factory | Repaired Imp. Light Armor Plating? 14056 | -6/Factory | Discovered exit to Factory (range 8) 14255 | -6/Factory | Build established: Scout 14353 | -6/Factory | Loaded intel: 8 recycling unit locations 14384 | -6/Factory | Learned location of Protoforge (-2) 14435 | -6/Factory | Spotted B-75 Beast 14563 | -6/Factory | Build established: Hacker-Scout 14703 | -6/Factory | Repaired Aerolev Unit? 15189 | -6/Factory | Fabricated Imp. Hacking Suite (x1) 15235 | -6/Factory | Repaired Imp. Utility Shielding 15568 | -6/Factory | Fabricated Imp. Hacking Suite? 15738 | -6/Factory | Sucked down chute 15738 | -6/Factory | Entered Waste 15739 | -6/Waste | Met a frightened Derelict 15744 | -6/Waste | Spotted C-40 Crusher 15747 | -6/Waste | Lost 5 parts (1p3n1w) 15749 | -6/Waste | Warlord forces began an assault 15828 | -6/Waste | Spotted C-40 Crusher 15835 | -6/Waste | Spotted C-40 Crusher 15838 | -6/Waste | Allies destroyed C-40 Crusher 15840 | -6/Waste | Spotted C-40 Crusher 15845 | -6/Waste | Allies destroyed C-40 Crusher 15847 | -6/Waste | Allies destroyed C-40 Crusher 15849 | -6/Waste | Spotted C-40 Crusher 15851 | -6/Waste | Allies destroyed C-40 Crusher 15861 | -6/Waste | Allies destroyed C-40 Crusher 15873 | -6/Waste | Spotted C-40 Crusher 15882 | -6/Waste | Lost 7 allies 15884 | -6/Waste | Allies destroyed C-40 Crusher 15919 | -6/Waste | Found Prototype Hackware 15999 | -6/Waste | Build established: Hacker-Mutant 16008 | -6/Waste | Discovered new exit (range 16) 16048 | -6/Waste | Identified exit to Factory 16065 | -6/Waste | Entered Factory 16065 | -6/Factory | Accompanied by 11 allies 16248 | -6/Factory | Fabricated Cld. Airjet? 16287 | -6/Factory | Fabricated Cmb. Airjet (x2) 16444 | -6/Factory | Loaded intel: 8 recycling unit locations 16457 | -6/Factory | Found Imp. Powered Armor 16547 | -6/Factory | Core integrity fell below 50% 16593 | -6/Factory | Core integrity fell below 20% 16605 | -6/Factory | Destroyed by S-27 Virus with Autogun Last Messages --------------- 16584_ Acquired Lgt. Nuclear Core. 16589_ Penetrated by Slug. 16591_ Cmb. Airjet destroyed. 16591_ Lgt. Nuclear Core destroyed. 16592_ Penetrated by Slug. 16594_ Connecting with Repair Station... >>Force(Patch) PATCHED[Cmb. Airjet] PATCHED[Power Sword] PATCHED[Imp. Utility Shielding] 16594_ ALERT: Suspicious activity at Repair Station F003. Dispatching Investigation squad. 16595_ Penetrated by Slug. 16595_ Cmb. Airjet destroyed. 16595_ Penetrated by Slug. 16598_ T-07 Excavator destroyed. 16598_ Slug penetrates Repair Station. 16602_ Slug penetrates Assembly Bed. 16603_ Destroyed VTOL Module. 16604_ Backup Plating I tumbles out of repair station. Map ----- +----------------------------------------------------+ | ?????????????????????????????????????????????????? | | ?????????????????????????????????????????????????? | | ??????????????????????????????????????????]??????? | | ?????????????????????????????????????????????????? | | ?????????????????????????????????????????????????? | | ?????????????????????????????????????????????????? | | ?????????????????????????????????????????????????? | | ?????????????????????????????????????????????????? | | ?????????????????????????????????????????????????? | | ?????????????????????????????????????????????????? | | ?????????????????????????????????????????????????? | | ?????????????????????????????????????????????????? | | ?????????????????????????????????????????????????? | | ?????????????????????????????????????????????????? | | ?????????????????????????????????????????????????? | | ?????????????????????????????????????????????????? | | ?????????????????????????????????????????????????? | | ???????????????????????????????????????????????o?? | | ?????????????????????????????????????????????????? | | ?????????????????????????????????????????????????? | | ???????????????######## ????????????????? | | ???????????????##################????????????????? | | ???????????????##################????????????????? | | ???????????????####################??????????????? | | # """ ###### ####??????????????? | | #+## ###### """ @ ####!?????????????? | | # ## ###### "R """" ####??????????????? | | # #####+########### """" + ??????????????? | | # s """" ####??????????????? | | %* """" ### ??????????????? | | +[ """" ###T??????????????? | | = h """" ####??????????????? | | *s h ####??????????????? | | ?########### #=# *[ ! ####??????????????? | | ? ########### # =[ %=% ####??????????????? | | ? ############### # !**=*%[ ####??????????????? | | ? ####### ### #######+#########??????????????? | | ?????#### ### #### #######??????????????? | | ?????#### + """ #######??????????????? | | ?????#### ###+##+# """ ]#######??????????????? | | ?????#### # # """ ####?????????????????? | | ?????##### ####= " ####?????????????????? | | ???????????#### ! ]# ####?????????????????? | | ???????????#### "Y" #+####+####?????????????????? | | ?????????#+#### """ # #### ####?????????????????? | | ????????? ### # #### ## ?????????????????? | | ?????????"" ########## #### ## ????????????????? | | ?????????"" ########## #### ## ????????????????? | | ?????????"" # ## ????????????????? | | ????????? # !% ## ????????????????? | +----------------------------------------------------+ Best States ------------- Heat Dissipation 60 Energy Generation 18 Energy Capacity 250 Matter Stores 300 Matter Capacity 300 Sight Range 22 Robot Scan Range 20 Terrain Scan Range 16 Terrain Scan Density 10 Jamming Range 14 Armor Coverage 375 Propulsion Shielding 66 Utility Shielding 66 Evasion (%) 56 Recoil Reduction 4 Offensive Hacking 24 Defensive Hacking 14 Item Schematics ----------------- Cmb. Airjet | -8/Materials | Scanalyzed Cld. Airjet | -6/Factory | Hacked Exp. Sensor Array | -6/Factory | Scanalyzed Imp. Hacking Suite | -6/Factory | Hacked Exp. Utility Shielding | -6/Factory | Hacked Robot Schematics ------------------ M-13 Machinist | -8/Recycling | Hacked Fabricated ------------ Imp. Hacking Suite | x1 | -6/Factory Imp. Hacking Suite | x1 | -6/Factory Cld. Airjet | x1 | -6/Factory Cmb. Airjet | x2 | -6/Factory Repaired ---------- Imp. Propulsion Shielding | 15% | -6/Factory Imp. Light Armor Plating | 13% | -6/Factory Aerolev Unit | 60% | -6/Factory Imp. Utility Shielding | 64% | -6/Factory Alien Tech Used ----------------- None Achievements -------------- None Challenges ------------ None Game ------ Seed ZhirovRefineryMatrix Manual? 0 Play Time 01:48:25 Cumulative 454.7 hours Start 2025.06.17 @ 23:24:24 End 2025.06.18 @ 01:16:00 Sessions 1 Manual Loads 0 Difficulty Rogue Special Mode None Game No. 232 Rogue 169 Adventurer 63 Explorer 0 Win Type - Total 9 Types 8/0/0/1/0/0/0/0/0/0 Lore% 89 Gallery% 80 Achievement% 66 Wizard Run 0 Options --------- Layout 0 ASCII 0 Keyboard 1 Movement Numpad Keybinds 0 Fullscreen 1 Font 18/Terminus Map View 76x50 Zoom Use 6% Tactical HUD 1 Map Filters NONE Filters NONE Steam 1 RUN: b44dcb08-b10c-4b18-8310-6efcbbe5f01c